Cogmind - Beta 15 @@@ ROGUE MODE // 2025.09.15 @ 19:32:02 Player: Crafthog Result: Smashed by cave-in Performance ------------- Evolutions (0) 0 Regions Visited (2) 400 Robots Destroyed (26) 130 Value Destroyed (479) 479 Prototype IDs (0) 0 Alien Tech Used (0) 0 Bonus (0) 0 TOTAL SCORE: 1009 Bonus ------- None Cogmind --------- Core Integrity 0/250 Matter 134/300 Energy 100/100 System Corruption 5% Temperature Warm (141) Movement Core (400) Ox7 Location -10/Mines Parts ------- > --- POWER (1) -------- (None) > --- PROPULSION (2) --- (None) > --- UTILITY (2) ------ Large Storage Unit > --- WEAPON (2) ------- Assault Rifle Assault Rifle > --- INVENTORY (15) --- Light Treads Medium Storage Unit Signal Interpreter Assault Rifle Peak State ------------ > --- POWER ------------ Ion Engine > --- PROPULSION ------- Light Treads Light Treads > --- UTILITY ---------- Large Storage Unit Sensor Array > --- WEAPON ----------- Assault Rifle Assault Rifle > --- INVENTORY -------- Ion Engine Light Treads Medium Storage Unit Signal Interpreter Assault Rifle Assault Rifle Grenade Launcher Grenade Launcher Grenade Launcher Grenade Launcher [Rating: 8] Favorites ----------- Power Light Ion Engine Engine Light Ion Engine Propulsion Light Treads Treads Light Treads Utility Sensor Array Device Sensor Array Storage Large Storage Unit Weapon Assault Rifle Ballistic Gun Assault Rifle Launcher Grenade Launcher Build | -11 -10 -10 ------- Run | Yrd Mat Min Slots Evolved . | . . . Power . | . . . Propulsion . | . . . Utility . | . . . Weapon . | . . . Parts Attached 19 | 6 6 7 Power 3 | 1 1 1 Engine 3 | 1 1 1 Core . | . . . Reactor . | . . . Propulsion 3 | 2 1 . Treads 3 | 2 1 . Leg . | . . . Wheel . | . . . Hover . | . . . Flight . | . . . Utility 4 | 1 3 . Device 1 | . 1 . Storage 3 | 1 2 . Processor . | . . . Hackware . | . . . Protection . | . . . Artifact . | . . . Weapon 9 | 2 1 6 Energy Gun . | . . . Energy Cannon . | . . . Ballistic Gun 5 | 2 1 2 Ballistic Cannon . | . . . Launcher 4 | . . 4 Special Weapon . | . . . Impact Weapon . | . . . Slashing Weapon . | . . . Piercing Weapon . | . . . Special Melee Weapon . | . . . Unidentified Prototypes . | . . . Parts Lost 12 | . 2 10 Power 3 | . 1 2 Propulsion 3 | . 1 2 Utility 1 | . . 1 Weapon 5 | . . 5 Highest Loss Streak 10 | . 2 10 To Critical Strikes . | . . . Average Backups 6 | 1 6 9 Power . | . . . Propulsion . | . . 1 Utility . | . . 2 Weapon 3 | . 4 5 Tool/Special . | . . . Unused Backups 2 | . . 2 Power . | . . . Propulsion 1 | . . 1 Utility 1 | . . 1 Weapon . | . . . Tool/Special . | . . . Average Slot Usage (%) 97 | . 98 88 Engine 13 | . 13 11 Treads 27 | . 27 23 Device 13 | . 13 11 Storage 14 | . 14 14 Ballistic Gun 26 | . 28 14 Launcher 1 | . . 11 Peak Build Rating 8 | 6 8 8 Average Rating 7 | 4 7 6 On Entrance 4 | . 6 8 Naked Turns . | . . . Heaviest Build 32 | 11 30 32 Greatest Support 40 | 40 40 40 Greatest Overweight (x) 10 | . . 10 Average Overweight (x) . | . . . Largest Inventory Capacity 15 | 8 15 15 Average Capacity 11 | 7 11 15 Most Carried 10 | 4 10 10 Average Carried 6 | 1 7 8 Final Capacity 15 | 8 15 15 Final Carried 10 | 1 10 4 Class Distribution -------------------- 100% | Mutant Dominant Class ---------------- Mutant | -10/Materials Mutant | -10/Mines Resources | -11 -10 -10 ----------- Run | Yrd Mat Min Matter Collected 554 | 256 264 34 Remotely . | . . . Salvage Created 543 | 72 403 68 Parts 53 | 5 38 10 Haulers Intercepted . | . . . Recyclers Shooed . | . . . Parts Field Recycled . | . . . Retrieved Matter . | . . . Parts Self-Destructed . | . . . Prevented . | . . . Kills | -11 -10 -10 ------- Run | Yrd Mat Min Combat Hostiles Destroyed 19 | . 13 6 Guns 18 | . 13 5 AOE 1 | . . 1 Classes Destroyed 8 | 2 4 2 Worker 1 | . . 1 Tunneler 1 | 1 . . Recycler 1 | 1 . . Operator 3 | . 3 . Watcher 1 | . 1 . Swarmer 11 | . 6 5 Grunt 7 | . 7 . Demolisher 1 | . . 1 Best Kill Streak 4 | 1 3 4 Combat Bots Only 3 | . 3 3 Max Kills in Single Turn 2 | 1 1 2 Gunslinging . | . . . Exploded 1 | . . 1 Melee . | . . . Uniques/NPCs Destroyed . | . . . Combat | -11 -10 -10 -------- Run | Yrd Mat Min Hostile Shots Fired 109 | . 76 33 Missed 19 | . 16 3 Hits 90 | . 60 30 Projectile 90 | . 60 30 AOE 22 | . . 22 Damage Taken 1504 | . 480 1024 Core 254 | . 96 158 Absorbed by Shields . | . . . Core Remaining (%) 100 | 100 . . Volleys Fired 64 | 6 47 11 Largest 2 | 2 2 2 Hottest 60 | 40 40 60 Shots Fired 127 | 12 94 21 Gun 123 | 12 94 17 Cannon . | . . . Launcher 4 | . . 4 Special . | . . . Kinetic 123 | 12 94 17 Thermal . | . . . Explosive 4 | . . 4 Electromagnetic . | . . . Robot Hit Streak 10 | 2 10 8 Robot Miss Streak 9 | 2 9 2 Penetration Max . | . . . Secondary Targets 3 | . 2 1 Max Gunslinging Chain 1 | . 1 1 Shots Hit Robots 73 | 7 51 15 Core Hits 45 | 3 28 14 Critical Kills . | . . . Critical Parts Destroyed . | . . . Critical Strikes . | . . . Melee Attacks . | . . . Impact . | . . . Slashing . | . . . Piercing . | . . . Sneak Attacks . | . . . Combat Hostiles . | . . . Follow-up Attacks . | . . . Damage Inflicted 1086 | 71 648 367 Guns 904 | 71 648 185 Cannons . | . . . Explosions 182 | . . 182 Melee . | . . . Ramming . | . . . Kinetic 904 | 71 648 185 Thermal . | . . . Explosive 182 | . . 182 Electromagnetic . | . . . Impact . | . . . Slashing . | . . . Piercing . | . . . Highest Corruption 5 | . 5 5 Average Corruption 2 | . 2 5 Corruption Purged . | . . . Corruption Blocked . | . . . Effects 21 | . 19 2 Message Errors 6 | . 6 . Matter Fused 5 | . 5 . Heat Flow Errors 3 | . 2 1 Energy Discharges 1 | . 1 . Data Loss (minor) 2 | . 2 . Misfires 2 | . 1 1 Alerts 1 | . 1 . Weapon Failures 1 | . 1 . Overload Shots . | . . . Overflow Damage . | . . . Projectiles . | . . . Explosions . | . . . Melee . | . . . Knockbacks . | . . . Impact . | . . . Kinetic . | . . . Secondary . | . . . Self-Inflicted Damage 5 | . . 5 Shots 1 | . . 1 Rammed . | . . . Targets Rammed . | . . . Kicked . | . . . Crushed . | . . . Highest Temperature 251 | . 251 227 Average Temperature 114 | . 100 190 Received Heat Transfer 42 | . 42 . Siege Activations . | . . . Martial Activations . | . . . Shielding Activations . | . . . Robots Disrupted . | . . . Combat Hostiles . | . . . Robots Corrupted . | . . . Combat Hostiles . | . . . Parts Fried . | . . . Impact Corruptions . | . . . Robots Melted . | . . . Combat Hostiles . | . . . Parts Melted . | . . . Heat Transferred . | . . . Parts Sabotaged . | . . . Parts Stolen . | . . . Parts Stripped . | . . . Power Chain Reactions . | . . . Alert | -11 -10 -10 ------- Run | Yrd Mat Min Maximum Alert Level . | . . . Low Security (%) 100 | 100 100 100 Level 1 . | . . . Level 2 . | . . . Level 3 . | . . . Level 4 . | . . . Level 5 . | . . . High Security . | . . . Max Security . | . . . Peak Influence 129 | 5 129 103 Initial 33 | . . 33 Average 48 | . 51 77 Influence Increases 560 | 10 402 148 Destroy 0b10 Robot/C 380 | . 260 120 Destroy 0b10 Robot/NC 35 | 10 20 5 Destroy Leader 82 | . 62 20 Destroy Structure 3 | . . 3 Lose Combat Pursuer 60 | . 60 . Influence Decreases 529 | 10 317 202 Entered New Map 52 | . . 52 Time Decay 357 | 10 297 50 Lost Part 120 | . 20 100 Squads Dispatched 4 | . 4 . Investigation 1 | . 1 . Extermination . | . . . Reinforcement 3 | . 3 . Assault . | . . . Garrison . | . . . Intercept . | . . . Searches Triggered . | . . . Construction Impeded . | . . . Haulers Reinforced . | . . . Active Scanning Responses . | . . . Cargo Convoy Interrupts . | . . . Stealth | -11 -10 -10 --------- Run | Yrd Mat Min Distress Signals 1 | . 1 . Communications Jammed . | . . . Distress Signals . | . . . Times Spotted 31 | . 25 6 Peak Tracking Total 4 | . 4 4 Tactical Retreats 4 | . 4 . Traps | -11 -10 -10 ------- Run | Yrd Mat Min Traps Triggered 3 | . 3 . Indirectly . | . . . Trap Hack Attempts . | . . . Triggered . | . . . Disarmed . | . . . Reprogrammed . | . . . Reused . | . . . Traps Extracted . | . . . Installed . | . . . Triggered . | . . . Machines | -11 -10 -10 ---------- Run | Yrd Mat Min Machines Disabled . | . . . Max in Single Turn . | . . . Machines Repaired . | . . . Machines Dismantled . | . . . Machines Sabotaged . | . . . Overloaded Fab Kills . | . . . Hacking | -11 -10 -10 --------- Run | Yrd Mat Min Machines Accessed 5 | . 5 . Terminals 5 | . 5 . Fabricators . | . . . Repair Stations . | . . . Recycling Units . | . . . Scanalyzers . | . . . Garrison Access . | . . . Total Hacks 15 | . 15 . Successful 1 | . 1 . Failed 14 | . 14 . Catastrophic 3 | . 3 . Database Lockouts . | . . . Manual 15 | . 15 . Terminals 15 | . 15 . Fabricators . | . . . Repair Stations . | . . . Recycling Units . | . . . Scanalyzers . | . . . Garrison Access . | . . . Terminal Hacks 1 | . 1 . Terminal Index 1 | . 1 . Fabricator Hacks . | . . . Repair Station Hacks . | . . . Recycling Unit Hacks . | . . . Scanalyzer . | . . . Garrison Access Hacks . | . . . Unauthorized Hacks . | . . . Terminals . | . . . Fabricators . | . . . Repair Stations . | . . . Recycling Units . | . . . Scanalyzers . | . . . Garrison Access . | . . . Data Cores Recovered . | . . . Used . | . . . Hacking Detections 4 | . 4 . Full Trace Events . | . . . Feedback Events . | . . . Feedback Blocked . | . . . Robot Schematics Acquired . | . . . Robots Built . | . . . Authchips . | . . . Time . | . . . Total Robot Build Rating . | . . . Part Schematics Acquired . | . . . Parts Built . | . . . Authchips . | . . . Time . | . . . Total Part Build Rating . | . . . Parts Repaired . | . . . Time . | . . . Parts Recycled . | . . . Recycled Matter . | . . . Retrieved Matter . | . . . Retrieved Components . | . . . Parts Scanalyzed . | . . . Part Schematics Acquired . | . . . Parts Damaged . | . . . Bothacking | -11 -10 -10 ------------ Run | Yrd Mat Min Used RIF Installer . | . . . Robots Hacked . | . . . Non-combat . | . . . Combat . | . . . Robot Hacks Applied . | . . . Relay Couplers Released . | . . . Fabnet Peak Effective % . | . . . Robots Rewired . | . . . Allies Hacked . | . . . Hacks Repelled . | . . . Allies | -11 -10 -10 -------- Run | Yrd Mat Min Total Allies . | . . . Largest Group . | . . . Highest-Rated Group . | . . . Highest-Rated Ally . | . . . Total Orders . | . . . Ally Attacks . | . . . Total Damage . | . . . Kills . | . . . Allies Corrupted . | . . . Allies Melted . | . . . Intel | -11 -10 -10 ------- Run | Yrd Mat Min Active Infowar (turns) 1147 | . 1053 94 Sensors 1147 | . 1053 94 Robot Analysis Total . | . . . Derelict Logs Recovered . | . . . Drone Launches . | . . . Drone Recoveries . | . . . Exploration | -11 -10 -10 ------------- Run | Yrd Mat Min Turns Passed 1321 | 125 1086 110 Spaces Moved 655 | 63 553 39 Core 6 | 4 . 2 Treads 649 | 59 553 37 Legs . | . . . Wheels . | . . . Hover . | . . . Flight . | . . . Fastest Speed 50 | 50 160 160 Average Speed 160 | 153 160 178 Slowest Speed 550 | 160 160 550 Overloaded Moves . | . . . Propulsion Burnouts . | . . . Robots Hopped . | . . . Potential Cave-ins . | . . . Cave-ins Triggered 1 | . . 1 Exploration Rate (%) 24 | 5 56 11 Regions Visited 2 Branch Regions 1 Pre-discovered Areas . | . . . Known Exits Taken . | . . . Unknown Exits Taken 2 | 1 1 . Scrap Searched . | . . . Spaces Dug . | . . . Terrain Destroyed 19 | . . 19 Melee . | . . . Projectile . | . . . AOE 19 | . . 19 Terrain Rammed . | . . . Walls Destroyed . | . . . Machines Disabled . | . . . Actions | -11 -10 -10 --------- Run | Yrd Mat Min Total 808 | 81 666 61 Wait 47 | . 45 2 Move 653 | 62 552 39 Hop . | . . . Pick Up 21 | 7 14 . Fast Attach . | . . . Attach 16 | 6 4 6 Detach . | . . . Swap 5 | . 2 3 Drop 2 | . 2 . Fire 64 | 6 47 11 Melee . | . . . Ram . | . . . Kick . | . . . Crush . | . . . Escape Stasis . | . . . Rewire . | . . . Trap . | . . . Miscellaneous . | . . . Route ------- -11/Scrapyard -10/Materials (discovered 2 exits: [*Mat] / [*Min]) -10/Mines History --------- Turn | Location | Event 2 | -11/Scrapyard | Discovered new exit (range 16) 126 | -11/Scrapyard | Entered Materials 313 | -10/Materials | Build established: Mutant 720 | -10/Materials | Discovered new exit (range 3) 1036 | -10/Materials | Discovered new exit (range 8) 1212 | -10/Materials | Entered Mines 1227 | -10/Mines | Assembled infested the area 1232 | -10/Mines | Assisted by a Guerilla fighting off Assembled 1302 | -10/Mines | Core integrity fell below 50% 1311 | -10/Mines | Core integrity fell below 20% 1323 | -10/Mines | Crushed by falling debris 1323 | -10/Mines | Smashed by cave-in Last Messages --------------- Lgt. Treads destroyed. The unstable cave ceiling collapses. U-05 Engineer destroyed. K-01 Serf collects debris. The unstable cave ceiling collapses. Grenade Launcher destroyed. D-53 Grenadier destroyed. Grenade Launcher destroyed. Ion Engine destroyed. The unstable cave ceiling collapses. K-01 Serf collects debris. The unstable cave ceiling collapses. System corrupted: Heat flow error (+239). The unstable cave ceiling collapses. K-01 Serf collects debris. D-53 Grenadier destroyed. The unstable cave ceiling collapses. K-01 Serf collects debris. The unstable cave ceiling collapses. Crushed by falling debris. Map ----- +----------------------------------------------------+ | ??????????????? ???????????????????????????????? | | ??????????????? ???????????????????????????????? | | ??????????????? #???????????????????????????????? | | ???????????????# #???????????????????????????????? | | ???????????????# #???????????????????????????????? | | ???????????????# #???????????????????????????????? | | ???????????????# #???????????????????????????????? | | ???????????????# #???????????????????????????????? | | ???????????????# #???????????????????????????????? | | ??????????????## ##??????????????????????????????? | | ??????????????# ##?????????????????????????????? | | ??????????????# ##????????????????????????????? | | ??????????????# =%#????????????????????????????? | | ??????????????# #????????????????????????????? | | ??????????????# %*##????????????????????????????? | | ??????????????## =##??????????????#??????????????? | | ???????????????#*##?????????????? #??????????????? | | ???????????????# #?????#####???## ###????????????? | | ???????????????# #????## # ##? #????????????? | | ???????????????# #???## # ?????????????? | | ???????????????# #??#### # ??????????????? | | ???????????????# #### """???????????????? | | ???????????????# r k """ ??????????????? | | ???????????????##### # """ #????????????? | | ???????????????????# # #????????????? | | ???????????????????# @ ##????????????????? | | ???????????????????# # k##?????????????????? | | ???????????????????# ??????????????? | | ???????????????????# #?????????????? | | ??????????????????# #?????????????? | | ??????????????????# # ## ###?????????????? | | ??????????????????# ### ##???????????????? | | ????????????????? ??### ## ???????????????? | | ????????????????### ?????####? ??????????????? | | ??????????????????# ???????????? ?????????????? | | ??????????????????## ????????????? #????????????? | | ???????????????????##??????????????##????????????? | | ?????????????????????????????????????????????????? | | ?????????????????????????????????????????????????? | | ?????????????????????????????????????????????????? | | ?????????????????????????????????????????????????? | | ?????????????????????????????????????????????????? | | ?????????????????????????????????????????????????? | | ?????????????????????????????????????????????????? | | ?????????????????????????????????????????????????? | | ?????????????????????????????????????????????????? | | ?????????????????????????????????????????????????? | | ?????????????????????????????????????????????????? | | ?????????????????????????????????????????????????? | | ?????????????????????????????????????????????????? | +----------------------------------------------------+ Best States ------------- Heat Dissipation 25 Energy Generation 10 Energy Capacity 250 Matter Stores 300 Matter Capacity 300 Sight Range 16 Robot Scan Range 14 Terrain Scan Density 10 Evasion (%) 40 Recoil Reduction 2 Item Schematics ----------------- None Robot Schematics ------------------ None Fabricated ------------ Nothing Repaired ---------- Nothing Alien Tech Used ----------------- None Achievements -------------- None Challenges ------------ None Game ------ Seed CommTargetingFilter Manual? 0 Play Time 00:13:45 Cumulative 7.2 hours Start 2025.09.15 @ 19:15:25 End 2025.09.15 @ 19:32:02 Sessions 1 Manual Loads 0 Difficulty Rogue Special Mode None Game No. 17 Rogue 17 Adventurer 0 Explorer 0 Win Type - Total 0 Types 0/0/0/0/0/0/0/0/0/0 Lore% 9 Gallery% 9 Achievement% 13 Wizard Run 0 Options --------- Layout 1 ASCII 0 Keyboard 0 Movement Mouse Keybinds 0 Fullscreen 1 Font 24/Smallcaps Map View 76x35 Zoom Use 0% Tactical HUD 0 Map Filters NONE Filters NONE Steam 1 RUN: 72cc75bd-fdeb-4a9a-9b5c-8edcc43e26b7